Cogmind - Beta 14 @@@ ROGUE MODE // 2025.01.12 @ 10:12:23 Player: Willow Result: Destroyed by G-47 Trooper with Particle Gun Performance ------------- Evolutions (0) 0 Regions Visited (1) 200 Robots Destroyed (31) 155 Value Destroyed (598) 598 Prototype IDs (0) 0 Alien Tech Used (0) 0 Bonus (0) 0 TOTAL SCORE: 953 Bonus ------- None Cogmind --------- Core Integrity 0/250 Matter 292/300 Energy 250/250 System Corruption 2% Temperature Hot (201) Movement Rolling (110) Ox2 Location -10/Materials Parts ------- > --- POWER (1) -------- Ion Engine > --- PROPULSION (2) --- Wheel Wheel > --- UTILITY (2) ------ High-capacity Storage Unit Signal Interpreter > --- WEAPON (2) ------- Small Laser Small Laser > --- INVENTORY (20) --- Ion Engine Ion Engine Light Ion Engine Light Treads Light Treads Wheel Wheel Heat Sink Improved Heat Sink Large Storage Unit High-capacity Matter Pod (200) Sensor Array Signal Interpreter Improved Terrain Scanner Seismic Detector Seismic Detector Propulsion Shielding Hacking Suite Datajack Mining Laser Peak State ------------ > --- POWER ------------ Light Ion Engine > --- PROPULSION ------- Wheel Wheel > --- UTILITY ---------- Small Storage Unit Improved Terrain Scanner > --- WEAPON ----------- Medium Laser Assault Rifle > --- INVENTORY -------- Light Ion Engine Light Treads Light Treads Seismic Detector Small Laser [Rating: 9] Favorites ----------- Power Ion Engine Engine Ion Engine Propulsion Wheel Treads Light Treads Wheel Wheel Utility High-capacity Storage Unit Device Seismic Detector Storage High-capacity Storage Unit Processor Signal Interpreter Weapon Small Laser Energy Gun Small Laser Ballistic Gun Assault Rifle Launcher Grenade Launcher Build | -11 -10 ------- Run | Yrd Mat Slots Evolved . | . . Power . | . . Propulsion . | . . Utility . | . . Weapon . | . . Parts Attached 32 | 10 22 Power 3 | 1 2 Engine 3 | 1 2 Core . | . . Reactor . | . . Propulsion 11 | 3 8 Treads 2 | . 2 Leg . | . . Wheel 9 | 3 6 Hover . | . . Flight . | . . Utility 7 | 3 4 Device 3 | 2 1 Storage 3 | 1 2 Processor 1 | . 1 Hackware . | . . Protection . | . . Artifact . | . . Weapon 11 | 3 8 Energy Gun 7 | 2 5 Energy Cannon . | . . Ballistic Gun 1 | 1 . Ballistic Cannon . | . . Launcher 3 | . 3 Special Weapon . | . . Impact Weapon . | . . Slashing Weapon . | . . Piercing Weapon . | . . Special Melee Weapon . | . . Unidentified Prototypes . | . . Parts Lost 9 | . 9 Power 2 | . 2 Propulsion 3 | . 3 Utility . | . . Weapon 4 | . 4 Highest Loss Streak 5 | . 5 To Critical Strikes . | . . Average Slot Usage (%) 98 | . 98 Engine 13 | . 13 Treads 11 | . 11 Wheel 15 | . 15 Device 7 | . 7 Storage 14 | . 14 Processor 6 | . 6 Energy Gun 23 | . 23 Ballistic Gun 3 | . 3 Launcher 1 | . 1 Peak Build Rating 9 | 9 9 Average Rating 7 | 7 7 On Entrance 4 | . 9 Naked Turns . | . . Heaviest Build 48 | 13 48 Greatest Support 40 | 26 40 Greatest Overweight (x) 4 | . 4 Average Overweight (x) . | . . Largest Inventory Capacity 20 | 8 20 Average Capacity 14 | 7 15 Most Carried 20 | 8 20 Average Carried 9 | 4 10 Final Capacity 20 | 8 20 Final Carried 20 | 8 20 Class Distribution -------------------- 72% | Scavenger-Mutant 27% | Mutant Dominant Class ---------------- Scavenger-Mutant | -10/Materials Resources | -11 -10 ----------- Run | Yrd Mat Matter Collected 880 | 327 553 Remotely . | . . Salvage Created 948 | 168 780 Parts 63 | 12 51 Haulers Intercepted 2 | . 2 Recyclers Shooed 2 | . 2 Parts Field Recycled . | . . Retrieved Matter . | . . Parts Self-Destructed . | . . Prevented . | . . Kills | -11 -10 ------- Run | Yrd Mat Combat Hostiles Destroyed 12 | . 12 Guns 10 | . 10 AOE 2 | . 2 Classes Destroyed 9 | 2 7 Worker 3 | . 3 Builder 2 | . 2 Tunneler 5 | 4 1 Hauler 2 | . 2 Recycler 2 | 1 1 Mechanic 1 | . 1 Operator 2 | . 2 Watcher 2 | . 2 Grunt 12 | . 12 Best Kill Streak 6 | 3 6 Combat Bots Only 3 | . 3 Max Kills in Single Turn 2 | 1 2 Gunslinging . | . . Exploded 1 | . 1 Melee . | . . Uniques/NPCs Destroyed . | . . Combat | -11 -10 -------- Run | Yrd Mat Hostile Shots Fired 101 | . 101 Missed 21 | . 21 Damage Taken 1015 | . 1015 Core 265 | . 265 Absorbed by Shields . | . . Core Remaining (%) 100 | 100 . Volleys Fired 106 | 9 97 Largest 2 | 2 2 Hottest 90 | 70 90 Shots Fired 197 | 18 179 Gun 190 | 18 172 Cannon . | . . Launcher 7 | . 7 Special . | . . Kinetic 40 | 9 31 Thermal 150 | 9 141 Explosive 7 | . 7 Electromagnetic . | . . Robot Hit Streak 14 | 4 14 Robot Miss Streak 3 | 1 3 Penetration Max . | . . Secondary Targets . | . . Shots Hit Robots 122 | 11 111 Core Hits 54 | 6 48 Critical Kills . | . . Critical Parts Destroyed . | . . Critical Strikes 5 | 1 4 Burn 5 | 1 4 Melee Attacks . | . . Impact . | . . Slashing . | . . Piercing . | . . Sneak Attacks . | . . Combat Hostiles . | . . Follow-up Attacks . | . . Damage Inflicted 1982 | 144 1838 Guns 1442 | 144 1298 Cannons . | . . Explosions 540 | . 540 Melee . | . . Ramming . | . . Kinetic 386 | 94 292 Thermal 1056 | 50 1006 Explosive 540 | . 540 Electromagnetic . | . . Impact . | . . Slashing . | . . Piercing . | . . Highest Corruption 2 | . 2 Average Corruption 2 | . 2 Corruption Purged . | . . Corruption Blocked . | . . Effects 6 | . 6 Message Errors 1 | . 1 Matter Fused 2 | . 2 Heat Flow Errors 1 | . 1 Energy Discharges 1 | . 1 Data Loss (minor) 1 | . 1 Overload Shots . | . . Overflow Damage 47 | . 47 Projectiles . | . . Explosions 47 | . 47 Melee . | . . Knockbacks . | . . Impact . | . . Kinetic . | . . Secondary . | . . Self-Inflicted Damage . | . . Shots . | . . Rammed . | . . Targets Rammed . | . . Kicked . | . . Crushed . | . . Highest Temperature 282 | 27 282 Average Temperature 60 | 9 64 Received Heat Transfer 588 | . 588 Siege Activations . | . . Robots Corrupted . | . . Combat Hostiles . | . . Parts Fried . | . . Impact Corruptions . | . . Robots Melted . | . . Combat Hostiles . | . . Parts Melted 4 | . 4 Heat Transferred 3089 | 222 2867 Parts Sabotaged . | . . Parts Stolen . | . . Parts Stripped . | . . Power Chain Reactions . | . . Alert | -11 -10 ------- Run | Yrd Mat Peak Influence 376 | 25 376 Initial 16 | . 16 Average 193 | 10 210 Maximum Alert Level 1 | . 1 Low Security (%) 44 | 100 39 Level 1 55 | . 60 Level 2 . | . . Level 3 . | . . Level 4 . | . . Level 5 . | . . High Security . | . . Max Security . | . . Squads Dispatched 5 | . 5 Investigation 1 | . 1 Extermination . | . . Reinforcement 4 | . 4 Assault . | . . Garrison . | . . Intercept . | . . Searches Triggered . | . . Construction Impeded . | . . Haulers Reinforced . | . . Active Scanning Responses . | . . Cargo Convoy Interrupts . | . . Stealth | -11 -10 --------- Run | Yrd Mat Distress Signals 3 | . 3 Communications Jammed . | . . Distress Signals . | . . Times Spotted 30 | . 30 Peak Tracking Total 5 | . 5 Tactical Retreats 8 | . 8 Traps | -11 -10 ------- Run | Yrd Mat Traps Triggered 2 | . 2 Indirectly . | . . Trap Hack Attempts . | . . Triggered . | . . Disarmed . | . . Reprogrammed . | . . Reused . | . . Traps Extracted . | . . Installed . | . . Triggered . | . . Machines | -11 -10 ---------- Run | Yrd Mat Machines Disabled 1 | . 1 Max in Single Turn 1 | . 1 Machines Repaired . | . . Machines Dismantled . | . . Machines Sabotaged . | . . Overloaded Fab Kills . | . . Hacking | -11 -10 --------- Run | Yrd Mat Machines Accessed 4 | . 4 Terminals 4 | . 4 Fabricators . | . . Repair Stations . | . . Recycling Units . | . . Scanalyzers . | . . Garrison Access . | . . Total Hacks 10 | . 10 Successful 6 | . 6 Failed 4 | . 4 Catastrophic 1 | . 1 Database Lockouts . | . . Manual 9 | . 9 Terminals 10 | . 10 Fabricators . | . . Repair Stations . | . . Recycling Units . | . . Scanalyzers . | . . Garrison Access . | . . Terminal Hacks 3 | . 3 Robot Analysis 2 | . 2 Terminal Index 1 | . 1 Fabricator Hacks . | . . Repair Station Hacks . | . . Recycling Unit Hacks . | . . Scanalyzer . | . . Garrison Access Hacks . | . . Unauthorized Hacks 3 | . 3 Terminals 3 | . 3 Botnet 3 | . 3 Fabricators . | . . Repair Stations . | . . Recycling Units . | . . Scanalyzers . | . . Garrison Access . | . . Data Cores Recovered . | . . Used . | . . Hacking Detections 4 | . 4 Full Trace Events . | . . Feedback Events . | . . Feedback Blocked . | . . Robot Schematics Acquired . | . . Robots Built . | . . Authchips . | . . Time . | . . Total Robot Build Rating . | . . Part Schematics Acquired . | . . Parts Built . | . . Authchips . | . . Time . | . . Total Part Build Rating . | . . Parts Repaired . | . . Time . | . . Parts Recycled . | . . Recycled Matter . | . . Retrieved Matter . | . . Retrieved Components . | . . Parts Scanalyzed . | . . Part Schematics Acquired . | . . Parts Damaged . | . . Bothacking | -11 -10 ------------ Run | Yrd Mat Used RIF Installer . | . . Robots Hacked . | . . Non-combat . | . . Combat . | . . Robot Hacks Applied . | . . Relay Couplers Released . | . . Fabnet Peak Effective % . | . . Robots Rewired . | . . Allies Hacked . | . . Hacks Repelled . | . . Allies | -11 -10 -------- Run | Yrd Mat Total Allies . | . . Largest Group . | . . Highest-Rated Group . | . . Highest-Rated Ally . | . . Total Orders . | . . Ally Attacks . | . . Total Damage . | . . Kills . | . . Allies Corrupted . | . . Allies Melted . | . . Intel | -11 -10 ------- Run | Yrd Mat Robot Analysis Total 2 | . 2 Derelict Logs Recovered . | . . Drone Launches . | . . Drone Recoveries . | . . Exploration | -11 -10 ------------- Run | Yrd Mat Turns Passed 1436 | 121 1315 Spaces Moved 788 | 84 704 Core 5 | 5 . Treads 218 | . 218 Legs . | . . Wheels 565 | 79 486 Hover . | . . Flight . | . . Fastest Speed 50 | 50 80 Average Speed 128 | 82 133 Slowest Speed 240 | 100 240 Overloaded Moves . | . . Propulsion Burnouts . | . . Robots Hopped . | . . Cave-ins Triggered . | . . Exploration Rate (%) 50 | 4 97 Regions Visited 1 Branch Regions . Pre-discovered Areas . | . . Known Exits Taken . | . . Unknown Exits Taken 1 | 1 . Scrap Searched . | . . Spaces Dug . | . . Terrain Destroyed 29 | . 29 Melee . | . . Projectile . | . . AOE 29 | . 29 Terrain Rammed . | . . Walls Destroyed . | . . Machines Disabled . | . . Actions | -11 -10 --------- Run | Yrd Mat Total 1011 | 114 897 Wait 43 | . 43 Move 787 | 83 704 Hop . | . . Pick Up 30 | 8 22 Fast Attach 12 | 9 3 Attach 9 | . 9 Detach 4 | 1 3 Swap 11 | 1 10 Drop 9 | 3 6 Fire 106 | 9 97 Melee . | . . Ram . | . . Kick . | . . Crush . | . . Escape Stasis . | . . Rewire . | . . Trap . | . . Miscellaneous . | . . Route ------- -11/Scrapyard -10/Materials (discovered 5 exits: *Mat x3 / *Min x2) History --------- Turn | Location | Event 38 | -11/Scrapyard | Discovered new exit (range 14) 122 | -11/Scrapyard | Entered Materials 211 | -10/Materials | Discovered new exit (range 16) 301 | -10/Materials | Build established: Mutant 328 | -10/Materials | Discovered new exit (range 14) 504 | -10/Materials | Lost 5 parts (2p2n1w) 526 | -10/Materials | Discovered new exit (range 14) 688 | -10/Materials | Discovered new exit (range 10) 706 | -10/Materials | Build established: Scavenger-Mutant 720 | -10/Materials | Core integrity fell below 50% 853 | -10/Materials | Identified exit to Mines 995 | -10/Materials | Discovered new exit (range 12) 1019 | -10/Materials | Identified exit to Materials 1426 | -10/Materials | Core integrity fell below 20% 1437 | -10/Materials | Destroyed by G-47 Trooper with Particle Gun Last Messages --------------- into recycling unit. 01395_ K-01 Serf collects debris. 01396_ Recycling unit begins recycling process. 01398_ R-06 Scavenger inserts Lgt. Ion Engine into recycling unit. 01398_ K-01 Serf cleans the Nuclear Reactor. 01399_ K-01 Serf collects debris. 01401_ R-06 Scavenger inserts Welding Torch into recycling unit. 01402_ Recycling unit begins recycling process. 01402_ K-01 Serf collects debris. 01404_ R-06 Scavenger inserts Hover Unit into recycling unit. 01405_ K-01 Serf collects debris. 01408_ K-01 Serf cleans the Nuclear Reactor. 01410_ R-06 Scavenger collects Tractor Beam. 01412_ K-01 Serf collects debris. 01428_ K-01 Serf cleans the Nuclear Reactor. 01437_ System corrupted: Matter fused (-8). Map ----- +----------------------------------------------------+ | "" # # ##??????????????????# """ # !!#?? | | T" + ###???????????????????# """ + !!#?? | | "" # #?????????????????????# """ # !!#?? | | # #############?????????# # !!#?? | | # # #?????????# ! ?# [[#?? | | ####### # """ """ | #?????????# ?# [[#?? | | ####### + """ """ #?????????#####??# #####?? | | # """ """ #????????????????# #?????? | | # """ """ #????????????????# ####### | | # """ """ #????????????????# # ! # | | ######## #????????????????# # !! # | | #??????#############????????????????# + !! # | | ####################????????????????# #! # | | %| ^ #???##########??## ##+#### | | !%* ##### #??# #??? | | % """ + """ #??# #??? | | "T" ##### """ #??# #??? | | ######+### " " ##### """ #### #??? | | [## # % """## + #??? | | ##!!! # T"## """ # #??? | | """##!!! # """ """?#[ """ # """"" #??? | | """##!!! # """ ##??# """ + """"" #??? | | ?""?# # """ #???# # """"" #??? | | ????##+### *%! #?#######+#### ###? | | ##### =% ^ r k k ### #? | | """ % g @ #? | | ##### """ ### #? | | ?######+## """ ""########+#####[ # #? | | ?# "T" # ^ Y"#???# # # #? | | ?# # ^ ""#???# !#====!!# #? | | ?# # """ ###???# #====!!# #? | | ?# # """ #?????# ######## #? | | ?#####+### """ ####??# #??????# #? | | ?????# """#??# #??????# #? | | ?????# Y"#??# ######## #? | | ?????# """ """#??# # # #? | | ?#######+## """ ####??# # """ + #? | | ?# # """ #?????########## """ # #? | | ?# # #??????????????# """ # #? | | ?# # #??????????????# # #? | | ?# # ####???????????#?## # #? | | ?# # #?????????????????# # #? | | ?# # #???????????????#?# =# #? | | ?# # #?????????????????#""" # #? | | ?# # #?????????????????#"R # #? | | ?# # #?????????????????#""" # #? | | ?########## < ###+#######????????????# "" # #? | | ??????????# # """"" #????????????# # #? | | ??????????#####] ""T"" #????????????######## #? | | ??????????????# #???????????????????#####? | +----------------------------------------------------+ Best States ------------- Heat Dissipation 25 Energy Generation 10 Energy Capacity 250 Matter Stores 300 Matter Capacity 300 Sight Range 16 Terrain Scan Range 16 Terrain Scan Density 10 Evasion (%) 44 Recoil Reduction 2 Item Schematics ----------------- None Robot Schematics ------------------ None Fabricated ------------ Nothing Alien Tech Used ----------------- None Achievements -------------- None Challenges ------------ None Game ------ Seed SubdwellerShockRail Manual? 0 Play Time 00:17:39 Cumulative 61.0 hours Start 2025.01.11 @ 11:33:58 End 2025.01.12 @ 10:12:23 Sessions 3 Manual Loads 0 Difficulty Rogue Special Mode None Game No. 47 Rogue 32 Adventurer 15 Explorer 0 Win Type - Total 0 Types 0/0/0/0/0/0/0/0/0 Lore% 33 Gallery% 35 Achievement% 33 Wizard Run 0 Options --------- Layout 1 ASCII 0 Keyboard 0 Movement Mouse Keybinds 0 Fullscreen 1 Font 24/Smallcaps Map View 50x35 Zoom Use 0% Tactical HUD 1 Map Filters NONE Filters NONE Steam 1 RUN: d743477e-d320-4835-b203-53c8c8068cdb